Workbook

Sheet Main

Sheet Basic
F1: Cette page donne le prix théorique et les grecs d'un call et d'un put en fonction des paramètres définis par l'utilisateur
B3: Underlying Price | C3: 100 | D3: Cours actuel du sous jacent | L3: <-- Cellules jaunes, à modifier en fonction des besoins
B4: Exercise Price | C4: 111 | D4: Prix d'exercice de l'option : prix auquel s'échangera le sous-jacent à l'échéance | L4: <-- Cellules bleues, résultats obtenus en fonction des données entrées dans les cellules jaunes
B5: Today's Date | C5: =TODAY() -> 2013-10-04
B6: Expiry Date | C6: =C5+30 -> 2013-11-03 | D6: Date d'expliration de l'option
B7: Historical Volatility | C7: 0.25 | D7: Volatilité historique du sous-jacent
B8: Risk Free Rate | C8: 0.05 | D8: Taux d'intérêt sans risque pour la zone et la période considérée
B9: Dividened Yield | C9: 0.02 | D9: Taux de dividende versé par le sous-jacent
B10: DTE (Years) | C10: =(C6-C5)/365 -> 0.08219178082
C12: Call Option | D12: Put Option
B13: Theoretical Price | C13: =CallOption(C3,C4,C10,C8,C7,C9) ->  | D13: =PutOption(C3,C4,C10,C8,C7,C9) ->  | E13: Prix théorique de l'option d'après le modèle de B&S, avec les paramètres ci-dessus
B14: Delta | C14: =CallDelta(C3,C4,C10,C8,C7,C9) ->  | D14: =Putdelta(C3,C4,C10,C8,C7,C9) ->  | E14: Sensibilité du prix de l'option à une variation donnée du cours du sous-jacent
B15: Gamma | C15: =Gamma(C3,C4,C10,C8,C7,C9) ->  | D15: =Gamma(C3,C4,C10,C8,C7,C9) ->  | E15: Sensibilité du delta de l'option à une variation donnée du cours du sous-jacent
B16: Theta | C16: =CallTheta(C3,C4,C10,C8,C7,C9) ->  | D16: =PutTheta(C3,C4,C10,C8,C7,C9) ->  | E16: Sensibilité du prix de l'option au passage du temps
B17: Vega | C17: =vega(C3,C4,C10,C8,C7,C9) ->  | D17: =vega(C3,C4,C10,C8,C7,C9) ->  | E17: Sensibilité du prix de l'option à une variation donnée de la volatilité du sous-jacent
B18: Rho | C18: =CallRho(C3,C4,C10,C8,C7,C9) ->  | D18: =PutRho(C3,C4,C10,C8,C7,C9) ->  | E18: Sensibilité du prix de l'option à une variation donnée des taux d'intérêt

Sheet MultipleStrikes
F1: Cette page donne les prix et les grecs d'options de strikes variés pour un même cours du sous-jacent
A2: =Basic!C3 -> 100 | B2: Underlying Price
A3: =Basic!C5 -> 2013-10-04 | B3: Today's Date | G3: <-- Cellules jaunes, à modifier en fonction des besoins
A4: =Basic!C7 -> 0.25 | B4: Historical Volatility | G4: <-- Cellules bleues, résultats obtenus en fonction des données entrées dans les cellules jaunes
A5: =Basic!C6 -> 2013-11-03 | B5: Expiry Date
A6: =Basic!C8 -> 0.05 | B6: Risk Free Rate | F6: 90 | G6: Strike
A7: =Basic!C9 -> 0.02 | B7: Dividend Yield | F7: 2 | G7: Strike increment
A8: =A5-A3 -> 30 | B8: DTE
A9: =A8/365 -> 0.08219178082 | B9: DTE in Years
A11: Call Options
C12: Theoretical | D12: Market | E12: Implied | F12: Option Greeks
A13: Strike Prices | C13: Price | D13: Price | E13: Volatility | F13: Delta | G13: Gamma | H13: Vega | I13: Theta | J13: Rho
A14: =A15-$F$7 -> 80 | B14: =IF(A14<$A$2,"ITM",IF(A14=$A$2,"ATM","OTM")) -> ITM | C14: =CallOption($A$2,A14,$A$9,$A$6,$A$4,$A$7) ->  | E14: =ImpliedCallVolatility($A$2,A14,$A$9,$A$6,D14,$A$7) ->  | F14: =CallDelta($A$2,A14,$A$9,$A$6,$A$4,$A$7) ->  | G14: =Gamma($A$2,A14,$A$9,$A$6,$A$4,$A$7) ->  | H14: =vega($A$2,A14,$A$9,$A$6,$A$4,$A$7) ->  | I14: =CallTheta($A$2,A14,$A$9,$A$6,$A$4,$A$7) ->  | J14: =CallRho($A$2,A14,$A$9,$A$6,$A$4,$A$7) -> 
A15: 82 | B15: =IF(A15<$A$2,"ITM",IF(A15=$A$2,"ATM","OTM")) -> ITM | C15: =CallOption($A$2,A15,$A$9,$A$6,$A$4,$A$7) -> 
A16: 84 | B16: ITM | C16: =CallOption($A$2,A16,$A$9,$A$6,$A$4,$A$7) -> 
A17: 86 | B17: =IF(A17<$A$2,"ITM",IF(A17=$A$2,"ATM","OTM")) -> ITM
A18: =A19-$F$7 -> 88 | B18: ITM
A19: =F6 -> 90 | B19: ITM
A20: =A19+$F$7 -> 92 | B20: ITM
A21: =A20+$F$7 -> 94 | B21: ITM
A22: 96 | B22: ITM
A23: 98 | B23: ITM
A24: 100 | B24: ATM
A26: Put Options
C27: Theoretical | D27: Market | E27: Implied | F27: Option Greeks
A28: Strike Prices | C28: Price | D28: Price | E28: Volatility | F28: Delta | G28: Gamma | H28: Vega | I28: Theta | J28: Rho
A29: =A14 -> 80 | B29: =IF(A29<$A$2,"OTM",IF(A29=$A$2,"ATM","ITM")) -> OTM | C29: =PutOption($A$2,A29,$A$9,$A$6,$A$4,$A$7) ->  | E29: =ImpliedPutVolatility($A$2,A29,$A$9,$A$6,D29,$A$7) ->  | F29: =Putdelta($A$2,A29,$A$9,$A$6,$A$4,$A$7) ->  | G29: =Gamma($A$2,A29,$A$9,$A$6,$A$4,$A$7) ->  | H29: =vega($A$2,A29,$A$9,$A$6,$A$4,$A$7) ->  | I29: =PutTheta($A$2,A29,$A$9,$A$6,$A$4,$A$7) ->  | J29: =PutRho($A$2,A29,$A$9,$A$6,$A$4,$A$7) -> 
A30: 82 | B30: OTM
A31: 84 | B31: OTM
A32: 86 | B32: OTM
A33: 88 | B33: OTM
A34: 90 | B34: OTM
A35: 92 | B35: OTM
A36: 94 | B36: OTM
A37: 96 | B37: OTM
A38: 98 | B38: OTM
A39: 100 | B39: ATM

Sheet OptionStrategies
B2: Strat1 | C2: Strat2 | D2: Strat3 | E2: Strat4 | F2: Strat5 | G2: Strat6 | H2: Strat7 | I2: Strat8 | J2: Strat9 | K2: Strat10 | L2: Total | N2: 111 | O2: Underlying Price
A3: Contracts | B3: 2 | C3: 1 | D3: 2 | E3: 2 | F3: -6 | G3: 5 | N3: 2011-05-15 | O3: Today's Date
A4: Type | B4: Calls | C4: put | D4: put | E4: put | F4: put | G4: put | N4: 0.25 | O4: Historical Volatility
A5: Strike | B5: 100 | C5: 111 | D5: 232 | E5: 232 | F5: 222 | G5: 111 | N5: 2013-09-13 | O5: Expiry Date
A6: Calculated Premium | B6: =IF(ISBLANK(B4),0,IF(LEFT(B4,1)="c",CallOption($N$2,B5,$N$9,$N$6,$N$4,$N$7),PutOption($N$2,B5,$N$9,$N$6,$N$4,$N$7))) -> 24.72688589 | C6: 12.1765439 | D6: 101.4144279 | E6: 101.4144279 | F6: 92.78379676 | G6: 12.1765439 | H6: 0 | I6: 0 | J6: 0 | K6: 0 | N6: 0.05 | O6: Risk Free Rate
A7: Override Premium | N7: 0.02 | O7: Dividend Yield
A8: Premium Used | B8: =IF(ISBLANK(B7),B6,B7) -> 24.72688589 | C8: =IF(ISBLANK(C7),C6,C7) -> 12.1765439 | D8: 101.4144279 | E8: 101.4144279 | F8: 92.78379676 | G8: 12.1765439 | H8: 0 | I8: 0 | J8: 0 | K8: 0 | L8: =SUMPRODUCT(B8:K8,B3:K3) -> -28.53203398 | M8: Total Cost | N8: =N5-N3 -> 852 | O8: DTE
A9: Delta | B9: =IF(ISBLANK(B4),0,IF(LEFT(B4,1)="s",1*B3,IF(LEFT(B4,1)="c",CallDelta($N$2,B5,$N$9,$N$6,$N$4,$N$7)*B3,Putdelta($N$2,B5,$N$9,$N$6,$N$4,$N$7)*B3))) -> 1.415089153 | C9: -0.3379338005 | D9: -1.794475221 | E9: -1.794475221 | F9: 5.297568076 | G9: -1.689669003 | H9: 0 | I9: 0 | J9: 0 | K9: 0 | L9: =SUM(B9:K9) -> 1.096103984 | M9: Position Delta | N9: =N8/365 -> 2.334246575 | O9: DTE in Years
A10: Gamma | B10: =IF(ISBLANK(B4),0,IF(LEFT(B4,1)="s",0,Gamma($N$2,B5,$N$9,$N$6,$N$4,$N$7)*B3)) -> 0.01456386078 | C10: 0.008372854051 | D10: 0.00535479909 | E10: 0.00535479909 | F10: -0.01909478981 | G10: 0.04186427025 | H10: 0 | I10: 0 | J10: 0 | K10: 0 | L10: =SUM(B10:K10) -> 0.05641579346 | M10: Position Gamma
A11: Theta | B11: =IF(ISBLANK(B4),0,IF(LEFT(B4,1)="s",0,IF(LEFT(B4,1)="c",CallTheta($N$2,B5,$N$9,$N$6,$N$4,$N$7)*B3,PutTheta($N$2,B5,$N$9,$N$6,$N$4,$N$7)*B3))) -> -0.0214989036 | C11: -0.00408127044 | D11: 0.03850761722 | E11: 0.03850761722 | F11: -0.1044491779 | G11: -0.0204063522 | H11: 0 | I11: 0 | J11: 0 | K11: 0 | L11: =SUM(B11:K11) -> -0.0734204697 | M11: Position Theta | O11: Saved Strategies : | P11: 5
A12: Vega | B12: =IF(ISBLANK(B4),0,IF(LEFT(B4,1)="s",0,vega($N$2,B5,$N$9,$N$6,$N$4,$N$7)*B3)) -> 1.047150768 | C12: 0.6020134823 | D12: 0.3850134288 | E12: 0.3850134288 | F12: -1.372927419 | G12: 3.010067411 | H12: 0 | I12: 0 | J12: 0 | K12: 0 | L12: =SUM(B12:K12) -> 4.0563311 | M12: Position Vega
A13: Rho | B13: =IF(ISBLANK(B4),0,IF(LEFT(B4,1)="s",0,IF(LEFT(B4,1)="c",CallRho($N$2,B5,$N$9,$N$6,$N$4,$N$7)*B3,PutRho($N$2,B5,$N$9,$N$6,$N$4,$N$7)*B3))) -> 2.512142406 | C13: -1.159821665 | D13: -9.384035498 | E13: -9.384035498 | F13: 26.72088704 | G13: -5.799108327 | H13: 0 | I13: 0 | J13: 0 | K13: 0 | L13: =SUM(B13:K13) -> 3.506028463 | M13: Position Rho
A16: Price/Graph Increment
A17: 3
J20: <-- Theoritical P&L relative to underlying price changes
J21: <-- P&L Payoff at Expiration
B34: P&L Payoff at Expiration Matrix
A35: Underlying Price | B35: Strat1 | C35: Strat2 | D35: Strat3 | E35: Strat4 | F35: Strat5 | G35: Strat6 | H35: Strat7 | I35: Strat8 | J35: Strat9 | K35: Strat10 | L35: P&L | M35: Intercept
A36: =A37-$A$17 -> 96 | B36: =IF(ISBLANK(B$4),0,IF(LEFT(B$4)="c",((MAX($A36-B$5,0)*B$3)-(B$8*B$3)),IF(LEFT(B$4)="p",((MAX(B$5-$A36,0)*B$3)-(B$8*B$3)),($A36-B$5)*B$3))) -> -49.45377178 | C36: =IF(ISBLANK(C$4),0,IF(LEFT(C$4)="c",((MAX($A36-C$5,0)*C$3)-(C$8*C$3)),IF(LEFT(C$4)="p",((MAX(C$5-$A36,0)*C$3)-(C$8*C$3)),($A36-C$5)*C$3))) -> 2.8234561 | D36: 69.17114429 | E36: 69.17114429 | F36: -199.2972194 | G36: 14.1172805 | H36: 0 | I36: 0 | J36: 0 | K36: 0 | L36: =SUM(B36:K36) -> -93.46796602 | M36: =IF(OR(AND(L36>0,L37>0),(AND(L36<0,L37<0))),0,INTERCEPT(A36:A37,L36:L37)) -> 0
A37: =A38-$A$17 -> 99 | B37: -49.45377178 | C37: -0.1765439005 | D37: 63.17114429 | E37: 63.17114429 | F37: -181.2972194 | G37: -0.8827195025 | H37: 0 | I37: 0 | J37: 0 | K37: 0 | L37: =SUM(B37:K37) -> -105.467966 | M37: =IF(OR(AND(L37>0,L38>0),(AND(L37<0,L38<0))),0,INTERCEPT(A37:A38,L37:L38)) -> 0
A38: =A39-$A$17 -> 102 | B38: =IF(ISBLANK(B$4),0,IF(LEFT(B$4)="c",((MAX($A38-B$5,0)*B$3)-(B$8*B$3)),IF(LEFT(B$4)="p",((MAX(B$5-$A38,0)*B$3)-(B$8*B$3)),($A38-B$5)*B$3))) -> -45.45377178 | C38: -3.1765439 | D38: 57.17114429 | E38: 57.17114429 | F38: -163.2972194 | G38: -15.8827195 | H38: 0 | I38: 0 | J38: 0 | K38: 0 | L38: -113.467966 | M38: 0
A39: =A40-$A$17 -> 105 | B39: -39.45377178 | C39: -6.1765439 | D39: 51.17114429 | E39: 51.17114429 | F39: -145.2972194 | G39: -30.8827195 | H39: 0 | I39: 0 | J39: 0 | K39: 0 | L39: -119.467966 | M39: 0
A40: =A41-$A$17 -> 108 | B40: -33.45377178 | C40: -9.1765439 | D40: 45.17114429 | E40: 45.17114429 | F40: -127.2972194 | G40: -45.8827195 | H40: 0 | I40: 0 | J40: 0 | K40: 0 | L40: -125.467966 | M40: 0
A41: =N2 -> 111 | B41: -27.45377178 | C41: -12.1765439 | D41: 39.17114429 | E41: 39.17114429 | F41: -109.2972194 | G41: -60.8827195 | H41: 0 | I41: 0 | J41: 0 | K41: 0 | L41: -131.467966 | M41: 0
A42: =A41+$A$17 -> 114 | B42: -21.45377178 | C42: -12.1765439 | D42: 33.17114429 | E42: 33.17114429 | F42: -91.29721942 | G42: -60.8827195 | H42: 0 | I42: 0 | J42: 0 | K42: 0 | L42: -119.467966 | M42: 0
A43: =A42+$A$17 -> 117 | B43: -15.45377178 | C43: -12.1765439 | D43: 27.17114429 | E43: 27.17114429 | F43: =IF(ISBLANK(F$4),0,IF(LEFT(F$4)="c",((MAX($A43-F$5,0)*F$3)-(F$8*F$3)),IF(LEFT(F$4)="p",((MAX(F$5-$A43,0)*F$3)-(F$8*F$3)),($A43-F$5)*F$3))) -> -73.29721942 | G43: -60.8827195 | H43: 0 | I43: 0 | J43: 0 | K43: 0 | L43: -107.467966 | M43: 0
A44: =A43+$A$17 -> 120 | B44: -9.453771775 | C44: -12.1765439 | D44: 21.17114429 | E44: 21.17114429 | F44: -55.29721942 | G44: -60.8827195 | H44: 0 | I44: 0 | J44: 0 | K44: 0 | L44: -95.46796602 | M44: 0
A45: =A44+$A$17 -> 123 | B45: -3.453771775 | C45: -12.1765439 | D45: 15.17114429 | E45: 15.17114429 | F45: -37.29721942 | G45: -60.8827195 | H45: 0 | I45: 0 | J45: 0 | K45: 0 | L45: -83.46796602 | M45: 0
A46: =A45+$A$17 -> 126 | B46: =IF(ISBLANK(B$4),0,IF(LEFT(B$4)="c",((MAX($A46-B$5,0)*B$3)-(B$8*B$3)),IF(LEFT(B$4)="p",((MAX(B$5-$A46,0)*B$3)-(B$8*B$3)),($A46-B$5)*B$3))) -> 2.546228225 | C46: -12.1765439 | D46: 9.17114429 | E46: 9.17114429 | F46: -19.29721942 | G46: -60.8827195 | H46: 0 | I46: 0 | J46: 0 | K46: 0 | L46: -71.46796602 | M46: =IF(OR(AND(L46>0,L47>0),(AND(L46<0,L47<0))),0,INTERCEPT(A46:A47,L46:L47)) -> 
B48: Current Theoretical P&L Relative to Underlying Price Changes
A49: Underlying Price | B49: Strat1 | C49: Strat2 | D49: Strat3 | E49: Strat4 | F49: Strat5 | G49: Strat6 | H49: Strat7 | I49: Strat8 | J49: Strat9 | K49: Strat10 | L49: P&L
A50: =A51-$A$17 -> 96 | B50: =IF(ISBLANK(B$4),0,IF(LEFT(B$4,1)="c",(CallOption($A50,B$5,$N$9,$N$6,$N$4,$N$7)*B$3)-(B$3*B$8),IF(LEFT(B$4)="p",(PutOption($A50,B$5,$N$9,$N$6,$N$4,$N$7)*B$3)-(B$3*B$8),($A50-B$5)*B$3))) -> -19.38370259 | C50: 6.091933635 | D50: 27.43661672 | E50: 27.43661672 | F50: -81.34021178 | G50: 30.45966818 | H50: 0 | I50: 0 | J50: 0 | K50: 0 | L50: =SUM(B50:K50) -> -9.29907911
A51: =A52-$A$17 -> 99 | B51: -15.82822445 | C51: 4.699972905 | D51: 21.87666668 | E51: 21.87666668 | F51: -64.80673066 | G51: 23.49986452 | H51: 0 | I51: 0 | J51: 0 | K51: 0 | L51: =SUM(B51:K51) -> -8.681784313
A52: =A53-$A$17 -> 102 | B52: -12.10217033 | C52: 3.398350923 | D52: 16.34914632 | E52: 16.34914632 | F52: -48.39293906 | G52: 16.99175462 | H52: 0 | I52: 0 | J52: 0 | K52: 0 | L52: -7.406711218
A53: =A54-$A$17 -> 105 | B53: -8.215478121 | C53: 2.183640095 | D53: 10.85789844 | E53: 10.85789844 | F53: -32.11182055 | G53: 10.91820047 | H53: 0 | I53: 0 | J53: 0 | K53: 0 | L53: -5.509661224
A54: =A55-$A$17 -> 108 | B54: -4.17812696 | C54: 1.052148667 | D54: 5.406854695 | E54: 5.406854695 | F54: -15.97647635 | G54: 5.260743334 | H54: 0 | I54: 0 | J54: 0 | K54: 0 | L54: -3.028001921
A55: =N2 -> 111 | B55: 0 | C55: 0 | D55: 0 | E55: 0 | F55: 0 | G55: 0 | H55: 0 | I55: 0 | J55: 0 | K55: 0 | L55: 0
A56: =A55+$A$17 -> 114 | B56: 4.309226428 | C56: -0.9767973815 | D56: -5.358662917 | E56: -5.358662917 | F56: 15.80464358 | G56: -4.883986908 | H56: 0 | I56: 0 | J56: 0 | K56: 0 | L56: 3.535759886
A57: =A56+$A$17 -> 117 | B57: 8.740169857 | C57: -1.882288961 | D57: -10.6651481 | E57: -10.6651481 | F57: 31.42473241 | G57: -9.411444807 | H57: 0 | I57: 0 | J57: 0 | K57: 0 | L57: 7.540872302
A58: =A57+$A$17 -> 120 | B58: 13.28380778 | C58: -2.720522317 | D58: -15.91551951 | E58: -15.91551951 | F58: 46.84789357 | G58: -13.60261159 | H58: 0 | I58: 0 | J58: 0 | K58: 0 | L58: 11.97752842
A59: =A58+$A$17 -> 123 | B59: 17.9315256 | C59: -3.49550361 | D59: -21.10592229 | E59: -21.10592229 | F59: 62.06219985 | G59: -17.47751805 | H59: 0 | I59: 0 | J59: 0 | K59: 0 | L59: 16.8088592
A60: =A59+$A$17 -> 126 | B60: 22.67514919 | C60: -4.211161825 | D60: -26.23261163 | E60: -26.23261163 | F60: 77.05625594 | G60: -21.05580913 | H60: 0 | I60: 0 | J60: 0 | K60: 0 | L60: 21.99921091
B62: Current Position Delta Relative to Underlying Price Changes
A63: Underlying Price | B63: Strat1 | C63: Strat2 | D63: Strat3 | E63: Strat4 | F63: Strat5 | G63: Strat6 | H63: Strat7 | I63: Strat8 | J63: Strat9 | K63: Strat10 | L63: Total
A64: =A65-$A$17 -> 96 | B64: =IF(ISBLANK(B$4),0,IF(LEFT(B$4,1)="c",CallDelta($A64,B$5,$N$9,$N$6,$N$4,$N$7)*B$3,IF(LEFT(B$4)="p",(Putdelta($A64,B$5,$N$9,$N$6,$N$4,$N$7)*B$3),B$3))) -> 1.155640021 | C64: -0.4793964179 | D64: -1.858304398 | E64: -1.858304398 | F64: 5.529684302 | G64: -2.396982089 | H64: 0 | I64: 0 | J64: 0 | K64: 0 | L64: =SUM(B64:K64) -> 0.09233701968
A65: =A66-$A$17 -> 99 | B65: 1.214137065 | C65: -0.4487487893 | D65: -1.848122166 | E65: -1.848122166 | F65: 5.491928041 | G65: -2.243743946 | H65: 0 | I65: 0 | J65: 0 | K65: 0 | L65: =SUM(B65:K65) -> 0.3173280375
A66: =A67-$A$17 -> 102 | B66: 1.269345985 | C66: -0.4191901107 | D66: -1.836677725 | E66: -1.836677725 | F66: 5.449877673 | G66: -2.095950554 | H66: 0 | I66: 0 | J66: 0 | K66: 0 | L66: 0.5307275441
A67: =A68-$A$17 -> 105 | B67: 1.321226998 | C67: -0.3908226463 | D67: -1.823935571 | E67: -1.823935571 | F67: 5.40347279 | G67: -1.954113231 | H67: 0 | I67: 0 | J67: 0 | K67: 0 | L67: 0.7318927681
A68: =A69-$A$17 -> 108 | B68: 1.369790765 | C68: -0.3637207304 | D68: -1.809872009 | E68: -1.809872009 | F68: 5.352695249 | G68: -1.818603652 | H68: 0 | I68: 0 | J68: 0 | K68: 0 | L68: 0.9204176131
A69: =$N$2 -> 111 | B69: 1.415089153 | C69: -0.3379338005 | D69: -1.794475221 | E69: -1.794475221 | F69: 5.297568076 | G69: -1.689669003 | H69: 0 | I69: 0 | J69: 0 | K69: 0 | L69: 1.096103984
A70: =A69+$A$17 -> 114 | B70: 1.457206853 | C70: -0.3134894909 | D70: -1.777745097 | E70: -1.777745097 | F70: 5.238153611 | G70: -1.567447455 | H70: 0 | I70: 0 | J70: 0 | K70: 0 | L70: 1.258933324
A71: =A70+$A$17 -> 117 | B71: 1.496253918 | C71: -0.2903966689 | D71: -1.759692848 | E71: -1.759692848 | F71: 5.17455102 | G71: -1.451983345 | H71: 0 | I71: 0 | J71: 0 | K71: 0 | L71: 1.409039228
A72: =A71+$A$17 -> 120 | B72: 1.532359262 | C72: -0.2686483309 | D72: -1.740340442 | E72: -1.740340442 | F72: 5.106893319 | G72: -1.343241654 | H72: 0 | I72: 0 | J72: 0 | K72: 0 | L72: 1.546681711
A73: =A72+$A$17 -> 123 | B73: 1.565665063 | C73: -0.2482243003 | D73: -1.719719887 | E73: -1.719719887 | F73: 5.035344042 | G73: -1.241121502 | H73: 0 | I73: 0 | J73: 0 | K73: 0 | L73: 1.672223528
A74: =A73+$A$17 -> 126 | B74: 1.596322054 | C74: -0.2290936938 | D74: -1.697872405 | E74: -1.697872405 | F74: 4.960093655 | G74: -1.145468469 | H74: 0 | I74: 0 | J74: 0 | K74: 0 | L74: 1.786108735
B76: Current Position Gamma Relative to Underlying Price Changes
A77: Underlying Price | B77: Strat1 | C77: Strat2 | D77: Strat3 | E77: Strat4 | F77: Strat5 | G77: Strat6 | H77: Strat7 | I77: Strat8 | J77: Strat9 | K77: Strat10 | L77: Total
A78: =A79-$A$17 -> 96 | B78: =IF(OR(ISBLANK(B$4),LEFT(B$4,1)="s"),0,Gamma($A78,B$5,$N$9,$N$6,$N$4,$N$7)*B$3) -> 0.02003775613 | C78: 0.01038348608 | D78: 0.003188617802 | E78: 0.003188617802 | F78: -0.01187999517 | G78: 0.05191743041 | H78: 0 | I78: 0 | J78: 0 | K78: 0 | L78: =SUM(B78:K78) -> 0.07683591305
A79: =A80-$A$17 -> 99 | B79: 0.01895476765 | C79: 0.01004089041 | D79: 0.003602149274 | E79: 0.003602149274 | F79: -0.01329656582 | G79: 0.05020445206 | H79: 0 | I79: 0 | J79: 0 | K79: 0 | L79: =SUM(B79:K79) -> 0.07310784285
A80: =A81-$A$17 -> 102 | B80: 0.01784902416 | C80: 0.009659229765 | D80: 0.004029452518 | E80: 0.004029452518 | F80: -0.01474036728 | G80: 0.04829614882 | H80: 0 | I80: 0 | J80: 0 | K80: 0 | L80: 0.06912294051
A81: =A82-$A$17 -> 105 | B81: 0.01673896156 | C81: 0.009248300476 | D81: 0.004466633468 | E81: 0.004466633468 | F81: -0.01619722323 | G81: 0.04624150238 | H81: 0 | I81: 0 | J81: 0 | K81: 0 | L81: 0.06496480813
A82: =A83-$A$17 -> 108 | B82: 0.01563981109 | C82: 0.008816914214 | D82: 0.004909730231 | E82: 0.004909730231 | F82: -0.01765318145 | G82: 0.04408457107 | H82: 0 | I82: 0 | J82: 0 | K82: 0 | L82: 0.06070757538
A83: =$N$2 -> 111 | B83: 0.01456386078 | C83: 0.008372854051 | D83: 0.00535479909 | E83: 0.00535479909 | F83: -0.01909478981 | G83: 0.04186427025 | H83: 0 | I83: 0 | J83: 0 | K83: 0 | L83: 0.05641579346
A84: =A83+$A$17 -> 114 | B84: 0.01352075582 | C84: 0.007922875853 | D84: 0.005797990943 | E84: 0.005797990943 | F84: -0.02050932759 | G84: 0.03961437926 | H84: 0 | I84: 0 | J84: 0 | K84: 0 | L84: 0.05214466523
A85: =A84+$A$17 -> 117 | B85: 0.0125178141 | C85: 0.007472742914 | D85: 0.006235617129 | E85: 0.006235617129 | F85: -0.02188499147 | G85: 0.03736371457 | H85: 0 | I85: 0 | J85: 0 | K85: 0 | L85: 0.04794051437
A86: =A85+$A$17 -> 120 | B86: 0.0115603398 | C86: 0.007027283734 | D86: 0.006664204163 | E86: 0.006664204163 | F86: -0.02321103712 | G86: 0.03513641867 | H86: 0 | I86: 0 | J86: 0 | K86: 0 | L86: 0.04384141342
A87: =A86+$A$17 -> 123 | B87: 0.0106519233 | C87: 0.006590464714 | D87: 0.007080537391 | E87: 0.007080537391 | F87: -0.02447787913 | G87: 0.03295232357 | H87: 0 | I87: 0 | J87: 0 | K87: 0 | L87: 0.03987790724
A88: =A87+$A$17 -> 126 | B88: 0.00979471974 | C88: 0.006165471258 | D88: 0.007481693967 | E88: 0.007481693967 | F88: -0.02567715284 | G88: 0.03082735629 | H88: 0 | I88: 0 | J88: 0 | K88: 0 | L88: 0.03607378238
B90: Current Position Theta Relative to Underlying Price Changes
A91: Underlying Price | B91: Strat1 | C91: Strat2 | D91: Strat3 | E91: Strat4 | F91: Strat5 | G91: Strat6 | H91: Strat7 | I91: Strat8 | J91: Strat9 | K91: Strat10 | L91: Total
A92: =A93-$A$17 -> 96 | B92: =IF(OR(ISBLANK(B$4),LEFT(B$4,1)="s"),0,IF(LEFT(B$4,1)="c",CallTheta($A92,B$5,$N$9,$N$6,$N$4,$N$7)*B$3,PutTheta($A92,B$5,$N$9,$N$6,$N$4,$N$7)*B$3)) -> -0.02080990018 | C92: -0.001907831318 | D92: 0.0436900503 | E92: 0.0436900503 | F92: -0.1216608268 | G92: -0.009539156591 | H92: 0 | I92: 0 | J92: 0 | K92: 0 | L92: =SUM(B92:K92) -> -0.06653761433
A93: =A94-$A$17 -> 99 | B93: -0.02117862917 | C93: -0.002462264992 | D93: 0.04279706348 | E93: 0.04279706348 | F93: -0.1186685289 | G93: -0.01231132496 | H93: 0 | I93: 0 | J93: 0 | K93: 0 | L93: =SUM(B93:K93) -> -0.06902662104
A94: =A95-$A$17 -> 102 | B94: -0.02142406198 | C94: -0.002956138623 | D94: 0.04183303614 | E94: 0.04183303614 | F94: -0.1154491774 | G94: -0.01478069311 | H94: 0 | I94: 0 | J94: 0 | K94: 0 | L94: -0.07094399885
A95: =A96-$A$17 -> 105 | B95: -0.0215535499 | C95: -0.003389665721 | D95: 0.04079682177 | E95: 0.04079682177 | F95: -0.1120033419 | G95: -0.0169483286 | H95: 0 | I95: 0 | J95: 0 | K95: 0 | L95: -0.07230124255
A96: =A97-$A$17 -> 108 | B96: -0.02157548214 | C96: -0.003764042291 | D96: 0.03968814839 | E96: 0.03968814839 | F96: -0.1083345502 | G96: -0.01882021146 | H96: 0 | I96: 0 | J96: 0 | K96: 0 | L96: -0.07311798929
A97: =$N$2 -> 111 | B97: -0.0214989036 | C97: -0.00408127044 | D97: 0.03850761722 | E97: 0.03850761722 | F97: -0.1044491779 | G97: -0.0204063522 | H97: 0 | I97: 0 | J97: 0 | K97: 0 | L97: -0.0734204697
A98: =A97+$A$17 -> 114 | B98: -0.02133319037 | C98: -0.004343990605 | D98: 0.03725668164 | E98: 0.03725668164 | F98: -0.1003562782 | G98: -0.02171995303 | H98: 0 | I98: 0 | J98: 0 | K98: 0 | L98: -0.07324004888
A99: =A98+$A$17 -> 117 | B99: -0.02108778174 | C99: -0.004555326712 | D99: 0.03593760873 | E99: 0.03593760873 | F99: -0.09606736296 | G99: -0.02277663356 | H99: 0 | I99: 0 | J99: 0 | K99: 0 | L99: -0.07261188749
A100: =A99+$A$17 -> 120 | B100: -0.02077196513 | C100: -0.004718746877 | D100: 0.0345534261 | E100: 0.0345534261 | F100: -0.09159614684 | G100: -0.02359373438 | H100: 0 | I100: 0 | J100: 0 | K100: 0 | L100: -0.07157374103
A101: =A100+$A$17 -> 123 | B101: -0.02039470911 | C101: -0.004837940994 | D101: 0.03310785681 | E101: 0.03310785681 | F101: -0.08695826372 | G101: -0.02418970497 | H101: 0 | I101: 0 | J101: 0 | K101: 0 | L101: -0.07016490518
A102: =A101+$A$17 -> 126 | B102: -0.01996453875 | C102: -0.004916715511 | D102: 0.03160524514 | E102: 0.03160524514 | F102: -0.08217096656 | G102: -0.02458357755 | H102: 0 | I102: 0 | J102: 0 | K102: 0 | L102: -0.0684253081
B104: Current Position Vega Relative to Underlying Price Changes
A105: Underlying Price | B105: Strat1 | C105: Strat2 | D105: Strat3 | E105: Strat4 | F105: Strat5 | G105: Strat6 | H105: Strat7 | I105: Strat8 | J105: Strat9 | K105: Strat10 | L105: Total
A106: =A107-$A$17 -> 96 | B106: =IF(OR(ISBLANK(B$4),LEFT(B$4,1)="s"),0,vega($A106,B$5,$N$9,$N$6,$N$4,$N$7)*B$3) -> 1.077651386 | C106: 0.5584346917 | D106: 0.1714871851 | E106: 0.1714871851 | F106: -0.6389185084 | G106: 2.792173458 | H106: 0 | I106: 0 | J106: 0 | K106: 0 | L106: =SUM(B106:K106) -> 4.132315397
A107: =A108-$A$17 -> 99 | B107: 1.084115599 | C107: 0.5742874892 | D107: 0.2060244836 | E107: 0.2060244836 | F107: -0.760495443 | G107: 2.871437446 | H107: 0 | I107: 0 | J107: 0 | K107: 0 | L107: =SUM(B107:K107) -> 4.181394058
A108: =A109-$A$17 -> 102 | B108: 1.083681252 | C108: 0.5864480942 | D108: 0.2446431866 | E108: 0.2446431866 | F108: -0.8949430242 | G108: 2.932240471 | H108: 0 | I108: 0 | J108: 0 | K108: 0 | L108: 4.196713166
A109: =A110-$A$17 -> 105 | B109: 1.076945806 | C109: 0.5950141155 | D109: 0.2873727956 | E109: 0.2873727956 | F109: -1.042091623 | G109: 2.975070578 | H109: 0 | I109: 0 | J109: 0 | K109: 0 | L109: 4.179684467
A110: =A111-$A$17 -> 108 | B110: 1.064549237 | C110: 0.6001376387 | D110: 0.3341887917 | E110: 0.3341887917 | F110: -1.201592573 | G110: 3.000688194 | H110: 0 | I110: 0 | J110: 0 | K110: 0 | L110: 4.13216008
A111: =$N$2 -> 111 | B111: 1.047150768 | C111: 0.6020134823 | D111: 0.3850134288 | E111: 0.3850134288 | F111: -1.372927419 | G111: 3.010067411 | H111: 0 | I111: 0 | J111: 0 | K111: 0 | L111: 4.0563311
A112: =A111+$A$17 -> 114 | B112: 1.025409676 | C112: 0.6008682999 | D112: 0.4397177269 | E112: 0.4397177269 | F112: -1.555420662 | G112: 3.004341499 | H112: 0 | I112: 0 | J112: 0 | K112: 0 | L112: 3.954634268
A113: =A112+$A$17 -> 117 | B113: 0.9999699748 | C113: 0.5969507523 | D113: 0.4981245012 | E113: 0.4981245012 | F113: -1.748255263 | G113: 2.984753762 | H113: 0 | I113: 0 | J113: 0 | K113: 0 | L113: 3.829668229
A114: =A113+$A$17 -> 120 | B114: 0.9714486091 | C114: 0.5905228677 | D114: 0.5600122468 | E114: 0.5600122468 | F114: -1.95049022 | G114: 2.952614338 | H114: 0 | I114: 0 | J114: 0 | K114: 0 | L114: 3.684120088
A115: =A114+$A$17 -> 123 | B115: 0.9404267898 | C115: 0.581852629 | D115: 0.6251196956 | E115: 0.6251196956 | F115: -2.16107952 | G115: 2.909263145 | H115: 0 | I115: 0 | J115: 0 | K115: 0 | L115: 3.520702435
A116: =A115+$A$17 -> 126 | B116: 0.9074440201 | C116: 0.5712077704 | D116: 0.6931508641 | E116: 0.6931508641 | F116: -2.378891834 | G116: 2.856038852 | H116: 0 | I116: 0 | J116: 0 | K116: 0 | L116: 3.342100537
B118: Current Position Rho Relative to Underlying Price Changes
A119: Underlying Price | B119: Strat1 | C119: Strat2 | D119: Strat3 | E119: Strat4 | F119: Strat5 | G119: Strat6 | H119: Strat7 | I119: Strat8 | J119: Strat9 | K119: Strat10 | L119: Total
A120: =A121-$A$17 -> 96 | B120: =IF(OR(ISBLANK(B$4),LEFT(B$4,1)="s"),0,IF(LEFT(B$4,1)="c",CallRho($A120,B$5,$N$9,$N$6,$N$4,$N$7)*B$3,PutRho($A120,B$5,$N$9,$N$6,$N$4,$N$7)*B$3)) -> 1.88773725 | C120: -1.50069958 | D120: -9.539194954 | E120: -9.539194954 | F120: 27.28483748 | G120: -7.5034979 | H120: 0 | I120: 0 | J120: 0 | K120: 0 | L120: =SUM(B120:K120) -> 1.089987339
A121: =A122-$A$17 -> 99 | B121: 2.020851147 | C121: -1.430954937 | D121: -9.51601407 | E121: -9.51601407 | F121: 27.19888356 | G121: -7.154774684 | H121: 0 | I121: 0 | J121: 0 | K121: 0 | L121: =SUM(B121:K121) -> 1.601976945
A122: =A123-$A$17 -> 102 | B122: 2.150347372 | C122: -1.361619391 | D122: -9.48915887 | E122: -9.48915887 | F122: 27.10021157 | G122: -6.808096955 | H122: 0 | I122: 0 | J122: 0 | K122: 0 | L122: 2.10252486
A123: =A124-$A$17 -> 105 | B123: 2.275669618 | C123: -1.293092348 | D123: -9.45836687 | E123: -9.45836687 | F123: 26.98807441 | G123: -6.46546174 | H123: 0 | I123: 0 | J123: 0 | K123: 0 | L123: 2.588456201
A124: =A125-$A$17 -> 108 | B124: 2.396378565 | C124: -1.225725282 | D124: -9.423397481 | E124: -9.423397481 | F124: 26.86181734 | G124: -6.12862641 | H124: 0 | I124: 0 | J124: 0 | K124: 0 | L124: 3.057049251
A125: =$N$2 -> 111 | B125: 2.512142406 | C125: -1.159821665 | D125: -9.384035498 | E125: -9.384035498 | F125: 26.72088704 | G125: -5.799108327 | H125: 0 | I125: 0 | J125: 0 | K125: 0 | L125: 3.506028463
A126: =A125+$A$17 -> 114 | B126: 2.622726375 | C126: -1.095638118 | D126: -9.340093974 | E126: -9.340093974 | F126: 26.56483826 | G126: -5.47819059 | H126: 0 | I126: 0 | J126: 0 | K126: 0 | L126: 3.933547985
A127: =A126+$A$17 -> 117 | B127: 2.727981844 | C127: -1.033386486 | D127: -9.29141646 | E127: -9.29141646 | F127: 26.39333811 | G127: -5.166932432 | H127: 0 | I127: 0 | J127: 0 | K127: 0 | L127: 4.338168114
A128: =A127+$A$17 -> 120 | B128: 2.827835428 | C128: -0.9732365956 | D128: -9.237878609 | E128: -9.237878609 | F128: 26.20616813 | G128: -4.866182978 | H128: 0 | I128: 0 | J128: 0 | K128: 0 | L128: 4.718826765
A129: =A128+$A$17 -> 123 | B129: 2.922278426 | C129: -0.9153194549 | D129: -9.179389165 | E129: -9.179389165 | F129: 26.00322436 | G129: -4.576597274 | H129: 0 | I129: 0 | J129: 0 | K129: 0 | L129: 5.074807721
A130: =A129+$A$17 -> 126 | B130: 3.011356834 | C130: -0.8597307328 | D130: -9.115890366 | E130: -9.115890366 | F130: 25.78451542 | G130: -4.298653664 | H130: 0 | I130: 0 | J130: 0 | K130: 0 | L130: 5.405707129

Sheet StrategyGraphs

Sheet Macro1 (hidden)

Sheet SavedStrategies (hidden)
A1: mlùml | B1: 2 | C1: 1 | D1: -3 | N1: 111
B2: Calls | C2: Put | D2: Puts | N2: 40678
B3: 100 | C3: 111 | D3: 113 | N3: 0.25
N4: 41530
N5: 0.05
N6: 0.02
A7: dgfh | B7: 2 | C7: 1 | D7: -3 | N7: 111
B8: Calls | C8: Put | D8: Puts | N8: 40678
B9: 100 | C9: 111 | D9: 113 | N9: 0.25
N10: 41530
N11: 0.05
N12: 0.02
A13: azeazea | B13: 2 | C13: 1 | N13: 111
B14: Calls | C14: Put | N14: 40678
B15: 100 | C15: 111 | N15: 0.25
N16: 41530
N17: 0.05
N18: 0.02
A19: doduou | B19: 2 | C19: 1 | D19: 2 | E19: 2 | F19: 2 | G19: 2 | N19: 111
B20: Calls | C20: put | D20: put | E20: put | F20: put | G20: put | N20: 2011-05-15
B21: 100 | C21: 111 | D21: 232 | E21: 232 | F21: 222 | G21: 111 | N21: 0.25
N22: 2013-09-13
N23: 0.05
N24: 0.02
A25: fg | B25: 2 | C25: 1 | D25: 2 | E25: 2 | F25: -6 | G25: 5 | N25: 111
B26: Calls | C26: put | D26: put | E26: put | F26: put | G26: put | N26: 2011-05-15
B27: 100 | C27: 111 | D27: 232 | E27: 232 | F27: 222 | G27: 111 | N27: 0.25
N28: 2013-09-13
N29: 0.05
N30: 0.02
